[Event "50th Ciudad Sevilla 2024"]
[Site "Sevilla"]
[Date "2025.01.10"]
[Round "1.1"]
[White "Xu, Xiangyu"]
[Black "Morais, Vitor"]
[Result "1-0"]
[Annotator "RC"]
[ECO "A45"]
[WhiteElo "2611"]
[BlackElo "1866"]
[PlyCount "95"]
[EventDate "2025.01.10"]
[EventType "swiss"]
[EventCountry "ESP"]
[SourceTitle "playchess.com"]
[Source "ChessBase"]
[SourceQuality "1"]
[TimeControl "90+30"]

1. d4 {[%emt 0:00:00]} Nf6 {[%emt 0:00:00]} 2. Bg5 {[%emt 0:00:00]} Ne4 {[%emt 0:00:00]} 3. Bf4 {[%emt 0:00:00]} d5 {[%emt 0:00:00]} 4. e3 {[%emt 0:00:00]} c5 {[%emt 0:00:00]} 5. Nd2 {[%emt 0:00:00]} Nxd2 {[%emt 0:00:00]} 6. Qxd2 {[%emt 0:00:00]} e6 {[%emt 0:00:00]} 7. Nf3 {[%emt 0:00:00]} Be7 {[%emt 0:00:00]} 8. dxc5 {[%emt 0:00:00]} Bxc5 {[%emt 0:00:00]} 9. Qc3 {[%emt 0:00:00]} Be7 {[%emt 0:00:00]} 10. Bc7 {[%emt 0:00:00]} Bb4 {[%emt 0:00:00]} 11. Qxb4 {[%emt 0:00:00]} Qxc7 {[%emt 0:00:00]} 12. c4 {[%emt 0:00:00]} Nc6 {[%emt 0:00:00]} 13. Qc3 {[%emt 0:00:00]} O-O {[%emt 0:00:00]} 14. cxd5 {[%emt 0:00:00]} exd5 {[%emt 0:00:00]} 15. Bb5 {[%emt 0:00:00]} Qa5 {[%emt 0:00:00]} 16. Qxa5 {[%emt 0:00:00]} Nxa5 {[%emt 0:00:00]} 17. Rc1 {[%emt 0:00:00]} a6 {[%emt 0:00:00]} 18. Bd3 {[%emt 0:00:00]} Nc6 {[%emt 0:00:00]} 19. Kd2 {[%emt 0:00:00]} Bg4 {[%emt 0:00:00]} 20. Nd4 {[%emt 0:00:00]} Nxd4 {[%emt 0:00:00]} 21. exd4 {[%emt 0:00:00]} Rac8 {[%emt 0:00:00]} 22. Rc5 {[%emt 0:00:00]} Rxc5 {[%emt 0:00:00]} 23. dxc5 {[%emt 0:00:00]} Rc8 {[%emt 0:00:00]} 24. Rc1 {[%emt 0:00:00]} Bd7 {[%emt 0:00:00]} 25. Ke3 {[%emt 0:00:00]} Bc6 {[%emt 0:00:00]} 26. Kd4 {[%emt 0:00:00]} Re8 {[%emt 0:00:00]} 27. b4 {[%emt 0:00:00]} Kf8 {[%emt 0:00:00]} 28. f3 {[%emt 0:00:00]} g6 {[%emt 0:00:00]} 29. Ra1 {[%emt 0:00:00]} Ba4 {[%emt 0:00:00]} 30. Kxd5 {[%emt 0:00:00]} Rd8+ {[%emt 0:00:00]} 31. Ke4 {[%emt 0:00:00]} f5+ {[%emt 0:00:00]} 32. Ke3 {[%emt 0:00:00]} f4+ {[%emt 0:00:00]} 33. Ke2 {[%emt 0:00:00]} Rd4 {[%emt 0:00:00]} 34. a3 {[%emt 0:00:00]} Kg7 {[%emt 0:00:00]} 35. Be4 {[%emt 0:00:00]} Rd7 {[%emt 0:00:00]} 36. Ra2 {[%emt 0:00:00]} Bb5+ {[%emt 0:00:00]} 37. Ke1 {[%emt 0:00:00]} Re7 {[%emt 0:00:00]} 38. Rd2 {[%emt 0:00:00]} Bc6 {[%emt 0:00:00]} 39. Re2 {[%emt 0:00:00]} Ba4 {[%emt 0:00:00]} 40. Rd2 {[%emt 0:00:00]} Bc6 {[%emt 0:00:00]} 41. Rd4 {[%emt 0:00:00]} g5 {[%emt 0:00:00]} 42. Kf2 {[%emt 0:00:00]} Bxe4 {[%emt 0:00:00]} 43. fxe4 {[%emt 0:00:00]} h6 {[%emt 0:00:00]} 44. Kf3 {[%emt 0:00:00]} Rc7 {[%emt 0:00:00]} 45. e5 {[%emt 0:00:00]} a5 {[%emt 0:00:00]} 46. Ke4 {[%emt 0:00:00]} axb4 {[%emt 0:00:00]} 47. axb4 {[%emt 0:00:00]} Re7 {[%emt 0:00:00]} 48. Rd6 {[%emt 0:00:00]} 1-0

[Event "50th Ciudad Sevilla 2024"]
[Site "Sevilla"]
[Date "2025.01.10"]
[Round "1.2"]
[White "Moncada Rodriguez, Cristobal"]
[Black "Iturrizaga Bonelli, Eduardo"]
[Result "0-1"]
[Annotator "RC"]
[ECO "D01"]
[WhiteElo "1865"]
[BlackElo "2574"]
[PlyCount "56"]
[EventDate "2025.01.10"]
[EventType "swiss"]
[EventCountry "ESP"]
[SourceTitle "playchess.com"]
[Source "ChessBase"]
[SourceQuality "1"]
[TimeControl "90+30"]

1. d4 {[%emt 0:00:00]} Nf6 {[%emt 0:00:00]} 2. Nc3 {[%emt 0:00:00]} d5 {[%emt 0:00:00]} 3. Bf4 {[%emt 0:00:00]} a6 {[%emt 0:00:00]} 4. e3 {[%emt 0:00:00]} c5 {[%emt 0:00:00]} 5. dxc5 {[%emt 0:00:00]} Nc6 {[%emt 0:00:00]} 6. Nf3 {[%emt 0:00:00]} Bg4 {[%emt 0:00:00]} 7. a3 {[%emt 0:00:00]} e5 {[%emt 0:00:00]} 8. Bg5 {[%emt 0:00:00]} e4 {[%emt 0:00:00]} 9. h3 {[%emt 0:00:00]} Be6 {[%emt 0:00:00]} 10. Nd4 {[%emt 0:00:00]} Bxc5 {[%emt 0:00:00]} 11. Be2 {[%emt 0:00:00]} Nxd4 {[%emt 0:00:00]} 12. exd4 {[%emt 0:00:00]} Bd6 {[%emt 0:00:00]} 13. Qd2 {[%emt 0:00:00]} h6 {[%emt 0:00:00]} 14. Bf4 {[%emt 0:00:00]} Bxf4 {[%emt 0:00:00]} 15. Qxf4 {[%emt 0:00:00]} Rc8 {[%emt 0:00:00]} 16. Qd2 {[%emt 0:00:00]} O-O {[%emt 0:00:00]} 17. O-O {[%emt 0:00:00]} Ne8 {[%emt 0:00:00]} 18. Na4 {[%emt 0:00:00]} Rc6 {[%emt 0:00:00]} 19. Nc5 {[%emt 0:00:00]} Bc8 {[%emt 0:00:00]} 20. f4 {[%emt 0:00:00]} Rg6 {[%emt 0:00:00]} 21. Qe3 {[%emt 0:00:00]} Nd6 {[%emt 0:00:00]} 22. g4 {[%emt 0:00:00]} f5 {[%emt 0:00:00]} 23. g5 {[%emt 0:00:00]} hxg5 {[%emt 0:00:00]} 24. Kh2 {[%emt 0:00:00]} g4 {[%emt 0:00:00]} 25. Rg1 {[%emt 0:00:00]} Rh6 {[%emt 0:00:00]} 26. Rg3 {[%emt 0:00:00]} Ne8 {[%emt 0:00:00]} 27. Rag1 {[%emt 0:00:00]} Nf6 {[%emt 0:00:00]} 28. Kg2 {[%emt 0:00:00]} Nh5 {[%emt 0:00:00]} 0-1

[Event "50th Ciudad Sevilla 2024"]
[Site "Sevilla"]
[Date "2025.01.10"]
[Round "1.4"]
[White "Reina Aguilar, Marcelo"]
[Black "Agdestein, Simen"]
[Result "0-1"]
[Annotator "TA"]
[ECO "A45"]
[WhiteElo "1861"]
[BlackElo "2564"]
[PlyCount "60"]
[EventDate "2025.01.10"]
[EventType "swiss"]
[EventCountry "ESP"]
[SourceTitle "playchess.com"]
[Source "ChessBase"]
[SourceQuality "1"]
[TimeControl "90+30"]

{[%evp 9,60,-9,0,-39,-7,-31,0,0,0,0,0,0,-3,-7,-10,-12,-15,0,0,0,0,-72,-65,-116,-120,-108,-120,-240,-238,-244,-234,-422,-412,-493,-497,-29991,-29992,-29993,-29994,-29994,-29995,-29995,-314,-29994,-29995,-29995,-29996,-29996,-29997,-29998,-29998,-29998,-29999]} 1. d4 {[%emt 0:00:00]} Nf6 {[%emt 0:00:00]} 2. Bg5 {[%emt 0:00:00]} Ne4 {[%emt 0:00:00]} 3. Bh4 {[%emt 0:00:00]} c5 {[%emt 0:00:00]} 4. f3 {[%emt 0:00:00]} g5 {[%emt 0:00:00]} 5. fxe4 {[%emt 0:00:00]} gxh4 {[%emt 0:00:00]} 6. c3 {[%emt 0:00:00]} Qb6 {[%emt 0:00:00]} 7. Qb3 {[%emt 0:00:00]} cxd4 {[%emt 0:00:00]} 8. Qxb6 {[%emt 0:00:00] The position is equal.} axb6 {[%emt 0:00:00]} 9. cxd4 {[%emt 0:00:00]} Nc6 {[%emt 0:00:00]} 10. Nf3 {[%emt 0:00:00][%cal Oe2e3]} Bh6 $36 {[%emt 0:00:00][%cal Od7d5][%mdl 2048] White must now prevent ...d5! White is under pressure.} 11. Nc3 {[%emt 0:00:00]} Nb4 {[%emt 0:00:00] Hoping for ...Nc2+.} 12. Nd5 {[%emt 0:00:00]} Nxd5 {[%emt 0:00:00]} (12... Rxa2 $6 13. Rxa2 Nxa2 14. e3 $16 (14. Nxb6 Kd8 $16) (14. Nxh4 e6 $11)) 13. exd5 {[%emt 0:00:00][%cal Oe1f2]} Be3 {[%emt 0:00:00]} 14. a4 $1 {[%emt 0:00:00][%cal Oa1a3]} f5 {[%emt 0:00:00]} 15. d6 {[%emt 0:00:00]} (15. g3 $11 {keeps the balance.}) 15... f4 {[%emt 0:00:00]} (15... exd6 16. Ra3 f4 17. g3 $11) 16. b4 {[%emt 0:00:00] Black continues to play with concentration.} ({Better is} 16. Nxh4 $15 Bxd4 17. Ra2) 16... b5 $17 {[%emt 0:00:00]} (16... exd6 $6 17. g3 $11) 17. a5 {[%emt 0:00:00]} b6 {[%emt 0:00:00]} (17... exd6 18. Nxh4 Bxd4 19. Ra3) 18. dxe7 {[%emt 0:00:00]} (18. g3 $17) 18... bxa5 {[%emt 0:00:00]} (18... Kxe7 19. Nxh4 Rf8 (19... Bxd4 $2 20. Nf5+ Kf6 21. Nxd4 $18) 20. g3 $17) 19. bxa5 {[%emt 0:00:00]} d6 {[%emt 0:00:00]} ({Resist} 19... Kxe7 20. g3) 20. Kd1 $2 {[%emt 0:00:00]} (20. Rb1 {was called for.}) 20... Kxe7 $19 {[%emt 0:00:00]} 21. Nxh4 {[%emt 0:00:00]} Bd7 {[%emt 0:00:00] A strong pair of Bishops.} ({Less strong is} 21... Bxd4 22. Rb1 $19) 22. d5 {[%emt 0:00:00]} (22. g4 $19 Rhc8 (22... Bxg4 $2 23. Bg2 $19) (22... Bxd4 $2 23. Rb1 $19) 23. Rb1) 22... Rhc8 {[%emt 0:00:00] White is weak on the dark squares} 23. g3 {[%emt 0:00:00] [#]} Rxa5 $3 {[%emt 0:00:00][%cal Ra5a1][%mdl 512]} 24. Rb1 {[%emt 0:00:00] [#]} b4 $1 {[%emt 0:00:00][%mdl 512]} 25. Ng2 {[%emt 0:00:02]} (25. Ng6+ hxg6) 25... Rxd5+ {[%emt 0:00:00]} 26. Ke1 {[%emt 0:00:08]} Rdc5 {[%emt 0:00:00] Black mates.} 27. Nxe3 {[%emt 0:02:03]} fxe3 {[%emt 0:00:00]} 28. Rd1 {[%emt 0:00:18]} Rc1 {[%emt 0:00:00]} 29. Bg2 {[%emt 0:00:10]} Rxd1+ {[%emt 0:00:00]} 30. Kxd1 {[%emt 0:00:50]} Ba4+ {[%emt 0:00:00] Weighted Error Value: White=0.59/Black=0.24 (precise) .  Mistake:       	White=5     	---        Inaccurate:     	---       	Black=2      OK:         	White=5     	Black=8      Best:        	White=2     	Black=1      Strong:       	White=1     	---} 0-1

[Event "50th Ciudad Sevilla 2024"]
[Site "Sevilla"]
[Date "2025.01.10"]
[Round "1.5"]
[White "Li, Di"]
[Black "Gonzalez Pabollet, Jesus Maria S"]
[Result "1-0"]
[Annotator "RC"]
[ECO "A45"]
[WhiteElo "2544"]
[BlackElo "1860"]
[PlyCount "38"]
[EventDate "2025.01.10"]
[EventType "swiss"]
[EventCountry "ESP"]
[SourceTitle "playchess.com"]
[Source "ChessBase"]
[SourceQuality "1"]
[TimeControl "90+30"]

1. d4 {[%emt 0:00:00]} Nf6 {[%emt 0:00:00]} 2. Nc3 {[%emt 0:00:00]} e6 {[%emt 0:00:00]} 3. e4 {[%emt 0:00:00]} d6 {[%emt 0:00:00]} 4. Be3 {[%emt 0:00:00]} Nbd7 {[%emt 0:00:00]} 5. g4 {[%emt 0:00:00]} h6 {[%emt 0:00:00]} 6. Bg2 {[%emt 0:00:00]} e5 {[%emt 0:00:00]} 7. h3 {[%emt 0:00:00]} Be7 {[%emt 0:00:00]} 8. Nge2 {[%emt 0:00:00]} b6 {[%emt 0:00:00]} 9. Qd2 {[%emt 0:00:00]} Ba6 {[%emt 0:00:00]} 10. O-O-O {[%emt 0:00:00]} c5 {[%emt 0:00:00]} 11. dxe5 {[%emt 0:00:00]} dxe5 {[%emt 0:00:00]} 12. Ng3 {[%emt 0:00:00]} Qc7 {[%emt 0:00:00]} 13. Nf5 {[%emt 0:00:00]} Rg8 {[%emt 0:00:00]} 14. f4 {[%emt 0:00:00]} Bc4 {[%emt 0:00:00]} 15. Bf1 {[%emt 0:00:00]} Bxf1 {[%emt 0:00:50]} 16. Rhxf1 {[%emt 0:00:00]} Bf8 {[%emt 0:04:35]} 17. g5 {[%emt 0:00:00]} hxg5 {[%emt 0:00:36]} 18. fxg5 {[%emt 0:00:00]} Nh5 {[%emt 0:01:28]} 19. Qd5 {[%emt 0:00:00]} Rc8 {[%emt 0:04:01]} 1-0

[Event "50th Ciudad Sevilla 2024"]
[Site "Sevilla"]
[Date "2025.01.10"]
[Round "1.6"]
[White "De La Cruz Fernandez, Juan C."]
[Black "Makhnev, Denis"]
[Result "0-1"]
[Annotator "RC"]
[ECO "A46"]
[WhiteElo "1860"]
[BlackElo "2532"]
[PlyCount "54"]
[EventDate "2025.01.10"]
[EventType "swiss"]
[EventCountry "ESP"]
[SourceTitle "playchess.com"]
[Source "ChessBase"]
[SourceQuality "1"]
[TimeControl "90+30"]

1. d4 {[%emt 0:00:00]} Nf6 {[%emt 0:00:00]} 2. Bg5 {[%emt 0:00:00]} e6 {[%emt 0:00:00]} 3. Nf3 {[%emt 0:00:00]} h6 {[%emt 0:00:00]} 4. Bh4 {[%emt 0:00:00]} b6 {[%emt 0:00:00]} 5. e3 {[%emt 0:00:00]} Bb7 {[%emt 0:00:00]} 6. Nbd2 {[%emt 0:00:00]} Be7 {[%emt 0:00:00]} 7. c3 {[%emt 0:00:00]} d6 {[%emt 0:00:00]} 8. Qa4+ {[%emt 0:00:00]} Kf8 {[%emt 0:00:00]} 9. Rd1 {[%emt 0:00:00]} a6 {[%emt 0:00:00]} 10. Qc2 {[%emt 0:00:00]} Nbd7 {[%emt 0:00:00]} 11. e4 {[%emt 0:00:00]} g5 {[%emt 0:00:00]} 12. Bg3 {[%emt 0:00:00]} Nh5 {[%emt 0:00:00]} 13. Be2 {[%emt 0:00:00]} g4 {[%emt 0:00:00]} 14. Ng1 {[%emt 0:00:00]} Rg8 {[%emt 0:00:00]} 15. h3 {[%emt 0:00:00]} Nxg3 {[%emt 0:00:00]} 16. fxg3 {[%emt 0:00:00]} h5 {[%emt 0:00:00]} 17. Qd3 {[%emt 0:00:00]} c5 {[%emt 0:00:00]} 18. d5 {[%emt 0:00:00]} Ne5 {[%emt 0:00:00]} 19. Qe3 {[%emt 0:00:00]} Bg5 {[%emt 0:00:00]} 20. Qf2 {[%emt 0:00:00]} exd5 {[%emt 0:00:00]} 21. exd5 {[%emt 0:00:00]} Bxd5 {[%emt 0:00:00]} 22. hxg4 {[%emt 0:00:00]} hxg4 {[%emt 0:00:00]} 23. Nf1 {[%emt 0:00:00]} Bxa2 {[%emt 0:00:00]} 24. Ne3 {[%emt 0:00:00]} Bb3 {[%emt 0:00:00]} 25. Ra1 {[%emt 0:00:00]} Qe7 {[%emt 0:00:00]} 26. Kf1 {[%emt 0:00:00]} Nd3 {[%emt 0:00:00]} 27. Bxd3 {[%emt 0:00:00]} Bxe3 {[%emt 0:00:00]} 0-1

[Event "50th Ciudad Sevilla 2024"]
[Site "Sevilla"]
[Date "2025.01.10"]
[Round "1.7"]
[White "Vignesh N R"]
[Black "Lucena Palomo, Alberto"]
[Result "1-0"]
[Annotator "RC"]
[ECO "B31"]
[WhiteElo "2523"]
[BlackElo "1854"]
[PlyCount "51"]
[EventDate "2025.01.10"]
[EventType "swiss"]
[EventCountry "ESP"]
[SourceTitle "playchess.com"]
[Source "ChessBase"]
[SourceQuality "1"]
[TimeControl "90+30"]

1. e4 {[%emt 0:00:00]} c5 {[%emt 0:00:00]} 2. Nf3 {[%emt 0:00:00]} Nc6 {[%emt 0:00:00]} 3. Bb5 {[%emt 0:00:00]} g6 {[%emt 0:00:00]} 4. O-O {[%emt 0:00:00]} Bg7 {[%emt 0:00:00]} 5. c3 {[%emt 0:00:00]} e6 {[%emt 0:00:00]} 6. d4 {[%emt 0:00:00]} cxd4 {[%emt 0:00:00]} 7. cxd4 {[%emt 0:00:00]} Qb6 {[%emt 0:00:00]} 8. Na3 {[%emt 0:00:00]} Bf8 {[%emt 0:00:00]} 9. Ba4 {[%emt 0:00:00]} d5 {[%emt 0:00:00]} 10. exd5 {[%emt 0:00:00]} exd5 {[%emt 0:00:00]} 11. Re1+ {[%emt 0:00:00]} Nge7 {[%emt 0:00:00]} 12. Nb5 {[%emt 0:00:00]} Be6 {[%emt 0:00:00]} 13. Bf4 {[%emt 0:00:00]} Kd7 {[%emt 0:00:00]} 14. Ne5+ {[%emt 0:00:00]} Nxe5 {[%emt 0:00:00]} 15. Bxe5 {[%emt 0:00:00]} Nc6 {[%emt 0:00:00]} 16. Bxh8 {[%emt 0:00:00]} Bb4 {[%emt 0:00:00]} 17. Be5 {[%emt 0:00:00]} Bxe1 {[%emt 0:00:00]} 18. Qxe1 {[%emt 0:00:00]} f6 {[%emt 0:00:00]} 19. Nc7 {[%emt 0:00:00]} Rc8 {[%emt 0:00:00]} 20. Nxe6 {[%emt 0:00:00]} fxe5 {[%emt 0:00:00]} 21. Qxe5 {[%emt 0:00:00]} Re8 {[%emt 0:00:00]} 22. Qxd5+ {[%emt 0:00:00]} Kc8 {[%emt 0:00:00]} 23. Rc1 {[%emt 0:00:00]} Qxb2 {[%emt 0:00:00]} 24. Rxc6+ {[%emt 0:00:00]} Kb8 {[%emt 0:00:00]} 25. Qe5+ {[%emt 0:00:00]} Ka8 {[%emt 0:00:00]} 26. Nc7+ {[%emt 0:00:00]} 1-0

[Event "50th Ciudad Sevilla 2024"]
[Site "Sevilla"]
[Date "2025.01.10"]
[Round "1.8"]
[White "Gutierrez Marconi, Christian Fernando"]
[Black "Kvaloy, Aksel Bu"]
[Result "0-1"]
[Annotator "RC"]
[ECO "A46"]
[WhiteElo "1853"]
[BlackElo "2487"]
[PlyCount "44"]
[EventDate "2025.01.10"]
[EventType "swiss"]
[EventCountry "ESP"]
[SourceTitle "playchess.com"]
[Source "ChessBase"]
[SourceQuality "1"]
[TimeControl "90+30"]

1. d4 {[%emt 0:00:00]} Nf6 {[%emt 0:00:00]} 2. Nf3 {[%emt 0:00:00]} e6 {[%emt 0:00:00]} 3. g3 {[%emt 0:00:00]} d5 {[%emt 0:00:00]} 4. Bg2 {[%emt 0:00:00]} Be7 {[%emt 0:00:00]} 5. O-O {[%emt 0:00:00]} O-O {[%emt 0:00:00]} 6. c3 {[%emt 0:00:00]} c5 {[%emt 0:00:00]} 7. Nbd2 {[%emt 0:00:00]} Nc6 {[%emt 0:00:00]} 8. Re1 {[%emt 0:00:00]} cxd4 {[%emt 0:00:00]} 9. cxd4 {[%emt 0:00:00]} b6 {[%emt 0:00:00]} 10. a3 {[%emt 0:00:00]} a5 {[%emt 0:00:00]} 11. b3 {[%emt 0:00:00]} Ba6 {[%emt 0:00:00]} 12. Bb2 {[%emt 0:00:00]} Rc8 {[%emt 0:00:00]} 13. Ne5 {[%emt 0:00:00]} Nxe5 {[%emt 0:00:00]} 14. dxe5 {[%emt 0:00:00]} Nd7 {[%emt 0:00:00]} 15. e4 {[%emt 0:00:00]} Nc5 {[%emt 0:00:00]} 16. Bf1 {[%emt 0:00:00]} Bxf1 {[%emt 0:00:00]} 17. Rxf1 {[%emt 0:00:00]} dxe4 {[%emt 0:00:00]} 18. Qe2 {[%emt 0:00:00]} Qd3 {[%emt 0:00:00]} 19. Rfe1 {[%emt 0:00:00]} Rfd8 {[%emt 0:00:00]} 20. Rad1 {[%emt 0:00:00]} Qxe2 {[%emt 0:00:00]} 21. Rxe2 {[%emt 0:00:00]} Nxb3 {[%emt 0:00:00]} 22. h4 {[%emt 0:00:00]} Rc2 {[%emt 0:00:00]} 0-1

[Event "50th Ciudad Sevilla 2024"]
[Site "Sevilla"]
[Date "2025.01.10"]
[Round "1.9"]
[White "Mitusov, Semen"]
[Black "Castillo Trujillo, Luis"]
[Result "1-0"]
[Annotator "RC"]
[ECO "B76"]
[WhiteElo "2463"]
[BlackElo "1852"]
[PlyCount "101"]
[EventDate "2025.01.10"]
[EventType "swiss"]
[EventCountry "ESP"]
[SourceTitle "playchess.com"]
[Source "ChessBase"]
[SourceQuality "1"]
[TimeControl "90+30"]

1. e4 {[%emt 0:00:00]} c5 {[%emt 0:00:00]} 2. Nf3 {[%emt 0:00:00]} d6 {[%emt 0:00:00]} 3. d4 {[%emt 0:00:00]} cxd4 {[%emt 0:00:00]} 4. Nxd4 {[%emt 0:00:00]} Nf6 {[%emt 0:00:00]} 5. Nc3 {[%emt 0:00:00]} g6 {[%emt 0:00:00]} 6. Be3 {[%emt 0:00:00]} Bg7 {[%emt 0:00:00]} 7. f3 {[%emt 0:00:00]} O-O {[%emt 0:00:00]} 8. Qd2 {[%emt 0:00:00]} Nc6 {[%emt 0:00:00]} 9. O-O-O {[%emt 0:00:00]} d5 {[%emt 0:00:00]} 10. exd5 {[%emt 0:00:00]} Nxd5 {[%emt 0:00:00]} 11. Nxc6 {[%emt 0:00:00]} bxc6 {[%emt 0:00:00]} 12. Bd4 {[%emt 0:00:00]} Nxc3 {[%emt 0:00:00]} 13. Qxc3 {[%emt 0:00:00]} Bxd4 {[%emt 0:00:00]} 14. Rxd4 {[%emt 0:00:00]} Qb6 {[%emt 0:00:00]} 15. h4 {[%emt 0:00:00]} h6 {[%emt 0:00:00]} 16. Bc4 {[%emt 0:00:00]} Ba6 {[%emt 0:00:00]} 17. h5 {[%emt 0:00:00]} g5 {[%emt 0:00:00]} 18. f4 {[%emt 0:00:00]} c5 {[%emt 0:00:00]} 19. Re4 {[%emt 0:00:00]} Bxc4 {[%emt 0:00:00]} 20. Rxc4 {[%emt 0:00:00]} gxf4 {[%emt 0:00:51]} 21. Rxf4 {[%emt 0:00:00]} f5 {[%emt 0:00:49]} 22. Rhf1 {[%emt 0:00:00]} Rf6 {[%emt 0:04:47]} 23. g4 {[%emt 0:00:00]} Raf8 {[%emt 0:01:18]} 24. gxf5 {[%emt 0:00:00]} Qa6 {[%emt 0:03:30]} 25. b3 {[%emt 0:00:00]} Qd6 {[%emt 0:00:30]} 26. Rg4+ {[%emt 0:00:00]} Kh7 {[%emt 0:00:28]} 27. Rg6 {[%emt 0:00:00]} Qd4 {[%emt 0:01:02]} 28. Qxd4 {[%emt 0:00:00]} cxd4 {[%emt 0:00:02]} 29. Re1 {[%emt 0:00:00]} Rxf5 {[%emt 0:01:00]} 30. Rxe7+ {[%emt 0:00:00]} R8f7 {[%emt 0:00:11]} 31. Rxf7+ {[%emt 0:00:00]} Rxf7 {[%emt 0:00:01]} 32. Ra6 {[%emt 0:00:00]} Kg7 {[%emt 0:01:40]} 33. Rg6+ {[%emt 0:00:00]} Kh7 {[%emt 0:00:10]} 34. Rd6 {[%emt 0:00:00]} Rf5 {[%emt 0:00:38]} 35. Rxd4 {[%emt 0:00:00]} Rxh5 {[%emt 0:00:04]} 36. Rd7+ {[%emt 0:00:00]} Kg6 {[%emt 0:00:18]} 37. Rxa7 {[%emt 0:00:00]} Rh1+ {[%emt 0:00:18]} 38. Kb2 {[%emt 0:00:00]} h5 {[%emt 0:00:09]} 39. Ra8 {[%emt 0:00:00]} h4 {[%emt 0:00:44]} 40. a4 {[%emt 0:00:00]} Rf1 {[%emt 0:01:53]} 41. Rg8+ {[%emt 0:00:00]} Kh5 {[%emt 0:00:32]} 42. a5 {[%emt 0:00:00]} Rf6 {[%emt 0:00:58]} 43. Rh8+ {[%emt 0:00:00]} Kg4 {[%emt 0:00:11]} 44. b4 {[%emt 0:00:00]} h3 {[%emt 0:00:31]} 45. Kb3 {[%emt 0:00:00]} Kg3 {[%emt 0:01:12]} 46. b5 {[%emt 0:00:00]} Rf3+ {[%emt 0:00:09]} 47. c3 {[%emt 0:00:00]} h2 {[%emt 0:00:41]} 48. a6 {[%emt 0:00:00]} Rf1 {[%emt 0:00:33]} 49. a7 {[%emt 0:00:00]} Ra1 {[%emt 0:00:44]} 50. b6 {[%emt 0:00:00]} Rb1+ {[%emt 0:00:30]} 51. Ka2 {[%emt 0:00:00]} 1-0

[Event "50th Ciudad Sevilla 2024"]
[Site "Sevilla"]
[Date "2025.01.10"]
[Round "1.10"]
[White "Kacem Rian"]
[Black "Urazayev, Arystanbek"]
[Result "0-1"]
[Annotator "RC"]
[ECO "D37"]
[WhiteElo "1852"]
[BlackElo "2448"]
[PlyCount "75"]
[EventDate "2025.01.10"]
[EventType "swiss"]
[EventCountry "ESP"]
[SourceTitle "playchess.com"]
[Source "ChessBase"]
[SourceQuality "1"]
[TimeControl "90+30"]

1. d4 {[%emt 0:00:00]} Nf6 {[%emt 0:00:00]} 2. Nf3 {[%emt 0:00:00]} e6 {[%emt 0:00:00]} 3. c4 {[%emt 0:00:00]} d5 {[%emt 0:00:00]} 4. Nc3 {[%emt 0:00:00]} Nbd7 {[%emt 0:00:00]} 5. Bg5 {[%emt 0:00:00]} h6 {[%emt 0:00:00]} 6. Bd2 {[%emt 0:00:00]} c6 {[%emt 0:00:00]} 7. e3 {[%emt 0:00:00]} Bd6 {[%emt 0:00:00]} 8. Bd3 {[%emt 0:00:00]} dxc4 {[%emt 0:00:00]} 9. Bxc4 {[%emt 0:00:00]} b5 {[%emt 0:00:00]} 10. Bd3 {[%emt 0:00:00]} Bb7 {[%emt 0:00:00]} 11. O-O {[%emt 0:00:00]} O-O {[%emt 0:00:00]} 12. Rc1 {[%emt 0:00:00]} Rc8 {[%emt 0:00:00]} 13. a3 {[%emt 0:00:00]} a5 {[%emt 0:00:00]} 14. Ne4 {[%emt 0:00:00]} Nxe4 {[%emt 0:00:00]} 15. Bxe4 {[%emt 0:00:00]} b4 {[%emt 0:00:00]} 16. axb4 {[%emt 0:00:00]} axb4 {[%emt 0:00:00]} 17. Bb1 {[%emt 0:00:00]} c5 {[%emt 0:00:00]} 18. dxc5 {[%emt 0:00:00]} Bxc5 {[%emt 0:00:00]} 19. Qe2 {[%emt 0:00:00]} Qb6 {[%emt 0:00:00]} 20. Rfd1 {[%emt 0:00:00]} Rfd8 {[%emt 0:00:00]} 21. Be1 {[%emt 0:00:00]} Nf6 {[%emt 0:00:00]} 22. Rxd8+ {[%emt 0:00:00]} Rxd8 {[%emt 0:00:00]} 23. Rd1 {[%emt 0:00:00]} Rc8 {[%emt 0:00:00]} 24. h3 {[%emt 0:00:00]} Be7 {[%emt 0:00:00]} 25. Nd4 {[%emt 0:00:00]} g6 {[%emt 0:00:00]} 26. Qb5 {[%emt 0:00:00]} Qxb5 {[%emt 0:00:00]} 27. Nxb5 {[%emt 0:00:00]} e5 {[%emt 0:00:00]} 28. Bd3 {[%emt 0:00:00]} Kg7 {[%emt 0:00:00]} 29. Be2 {[%emt 0:00:00]} Bd5 {[%emt 0:00:00]} 30. Bf3 {[%emt 0:00:00]} Bb3 {[%emt 0:00:00]} 31. Na7 {[%emt 0:00:00]} Rc2 {[%emt 0:00:00]} 32. Rd2 {[%emt 0:00:00]} Rc1 {[%emt 0:00:00]} 33. Kf1 {[%emt 0:00:00]} Ba4 {[%emt 0:00:00]} 34. Be2 {[%emt 0:01:03]} Ne4 {[%emt 0:00:00]} 35. Rd5 {[%emt 0:01:24]} Bb3 {[%emt 0:00:07]} 36. Rd7 {[%emt 0:01:23]} Bh4 {[%emt 0:01:20]} 37. g3 {[%emt 0:01:10]} Nxg3+ {[%emt 0:04:39]} 38. fxg3 {[%emt 0:06:44]} 0-1

[Event "50th Ciudad Sevilla 2024"]
[Site "Sevilla"]
[Date "2025.01.10"]
[Round "1.11"]
[White "Ilinca, Felix-Antonio"]
[Black "Delgado Lozano, Ignacio Maria"]
[Result "1-0"]
[Annotator "RC"]
[ECO "B12"]
[WhiteElo "2440"]
[BlackElo "1851"]
[PlyCount "53"]
[EventDate "2025.01.10"]
[EventType "swiss"]
[EventCountry "ESP"]
[SourceTitle "playchess.com"]
[Source "ChessBase"]
[SourceQuality "1"]
[TimeControl "90+30"]

1. e4 {[%emt 0:00:00]} c6 {[%emt 0:00:00]} 2. d4 {[%emt 0:00:00]} d5 {[%emt 0:00:00]} 3. e5 {[%emt 0:00:00]} Bf5 {[%emt 0:00:00]} 4. Nf3 {[%emt 0:00:00]} e6 {[%emt 0:00:00]} 5. Be2 {[%emt 0:00:00]} Ne7 {[%emt 0:00:00]} 6. O-O {[%emt 0:00:00]} Nd7 {[%emt 0:00:00]} 7. c3 {[%emt 0:00:00]} c5 {[%emt 0:00:00]} 8. c4 {[%emt 0:00:00]} dxc4 {[%emt 0:00:00]} 9. Na3 {[%emt 0:00:00]} a6 {[%emt 0:00:00]} 10. Nxc4 {[%emt 0:00:00]} Nd5 {[%emt 0:00:00]} 11. Bg5 {[%emt 0:00:00]} Qc7 {[%emt 0:00:00]} 12. Rc1 {[%emt 0:00:00]} h6 {[%emt 0:00:00]} 13. Bh4 {[%emt 0:00:00]} b5 {[%emt 0:00:00]} 14. Nd6+ {[%emt 0:00:00]} Bxd6 {[%emt 0:00:00]} 15. exd6 {[%emt 0:00:00]} Qxd6 {[%emt 0:00:00]} 16. dxc5 {[%emt 0:00:00]} Nxc5 {[%emt 0:00:00]} 17. Bg3 {[%emt 0:00:00]} Qb6 {[%emt 0:00:00]} 18. Qd4 {[%emt 0:00:00]} Nd7 {[%emt 0:00:00]} 19. Qxg7 {[%emt 0:00:00]} Rh7 {[%emt 0:00:00]} 20. Qg8+ {[%emt 0:00:00]} Nf8 {[%emt 0:00:00]} 21. Be5 {[%emt 0:00:00]} f6 {[%emt 0:00:00]} 22. Bd4 {[%emt 0:00:00]} Qb7 {[%emt 0:00:00]} 23. Nh4 {[%emt 0:00:00]} Qf7 {[%emt 0:00:00]} 24. Qg3 {[%emt 0:00:00]} Rg7 {[%emt 0:00:00]} 25. Nxf5 {[%emt 0:00:00]} exf5 {[%emt 0:00:00]} 26. Bh5 {[%emt 0:00:00]} Ng6 {[%emt 0:00:00]} 27. Qd6 {[%emt 0:00:00]} 1-0